fUSD/lending_fUSD_20260627
["ID","MTS","AMOUNT","RATE_DAILY","PERIOD"]
[426510634,1782496237000,-524.89,0.0002799,10]
[426510636,1782496237000,-318.36025517,0.00028034,2]
[426510637,1782496237000,-1228.54495006,0.00028416,2]
[426510635,1782496237000,-9397.53079593,0.00028,8]
[426510639,1782496237000,-1561.77754611,0.00028595,14]
[426510640,1782496237000,-158.0,0.00028598,30]
[426510638,1782496237000,-179.296954,0.00028538,14]
[426510643,1782496237000,-156.0,0.00028602,30]
[426510642,1782496237000,-156.0,0.00028602,30]
[426510670,1782496238000,-154.0,0.00029602,30]
[426510675,1782496238000,-162.0,0.00029602,30]
[426510685,1782496238000,-485.53867307,0.00030079,7]
[426510687,1782496238000,-7270.91271713,0.00030095,28]
[426510686,1782496238000,-46259.0,0.0003008,20]
[426510681,1782496238000,-10401.89,0.0003,2]
[426510678,1782496238000,-1228.54495006,0.00029863,2]
[426510680,1782496238000,-500.0,0.00029999,60]
[426510674,1782496238000,-164.0,0.00029602,30]
[426510676,1782496238000,-164.0,0.00029602,30]
[426510677,1782496238000,-154.0,0.00029602,30]
[426510679,1782496238000,-500.0,0.00029999,2]
[426510683,1782496238000,-14999.99,0.0003,2]
[426510684,1782496238000,-169.06815774,0.0003,60]
[426510688,1782496238000,-10876.8505801,0.00030095,28]
[426510690,1782496238000,-151.0,0.00030095,7]
[426510691,1782496238000,-232.89460966,0.00030136,7]
[426510704,1782496238000,-157.0,0.00030602,30]
[426510696,1782496238000,-158.0,0.00030598,30]
[426510705,1782496238000,-164.0,0.00030602,30]
[426510693,1782496238000,-935.0,0.00030335,2]
[426510700,1782496238000,-159.0,0.00030602,30]
[426510673,1782496238000,-163.0,0.00029602,30]
[426510682,1782496238000,-9999.99,0.0003,2]
[426510672,1782496238000,-162.0,0.00029602,30]
[426510656,1782496238000,-3917.11213538,0.0002912,20]
[426510669,1782496238000,-153.0,0.00029602,30]
[426510644,1782496238000,-153.0,0.00028602,30]
[426510654,1782496238000,-2890.39797999,0.00029009,7]
[426510647,1782496238000,-162.0,0.00028602,30]
[426510646,1782496238000,-157.0,0.00028602,30]
[426510649,1782496238000,-164.0,0.00028602,30]
[426510653,1782496238000,-647.5,0.00029009,7]
[426510650,1782496238000,-162.0,0.00028602,30]
[426510645,1782496238000,-154.0,0.00028602,30]
[426510651,1782496238000,-164.0,0.00028602,30]
[426510652,1782496238000,-154.0,0.00028602,30]
[426510648,1782496238000,-158.0,0.00028602,30]
[426510671,1782496238000,-157.0,0.00029602,30]
[426510655,1782496238000,-10004.45202001,0.00029009,7]
[426510660,1782496238000,-3110.35370278,0.0002912,20]
[426510659,1782496238000,-430.13239971,0.0002912,20]
[426510662,1782496238000,-6813.01717682,0.0002912,20]
[426510661,1782496238000,-257.31499997,0.0002912,20]
[426510658,1782496238000,-5604.19535025,0.0002912,20]
[426510663,1782496238000,-20934.08434411,0.0002912,20]
[426510666,1782496238000,-158.0,0.00029602,30]
[426510664,1782496238000,-4121.55565393,0.00029595,14]
[426510667,1782496238000,-156.0,0.00029602,30]
[426510665,1782496238000,-158.0,0.00029598,30]
[426510668,1782496238000,-163.14951849,0.00029602,30]
[426510657,1782496238000,-5192.78989098,0.0002912,20]
[426510694,1782496238000,-550.255,0.00030507,26]
[426510689,1782496238000,-14716.7559,0.00030095,28]
[426510701,1782496238000,-154.0,0.00030602,30]
[426510742,1782496238000,-1228.54495006,0.00032758,2]
[426510738,1782496238000,-3930.96492716,0.0003264,2]
[426510735,1782496238000,-157.0,0.00032602,30]
[426510739,1782496238000,-535.15129373,0.00032705,2]
[426510737,1782496238000,-271.61,0.00032635,3]
[426510734,1782496238000,-154.0,0.00032602,30]
[426510743,1782496238000,-535.15129373,0.00032815,2]
[426510744,1782496238000,-500.0,0.00032877,2]
[426510748,1782496238000,-145.3119095,0.00033087,2]
[426510745,1782496238000,-42039.80412365,0.0003296,20]
[426510746,1782496238000,-4219.19587635,0.0003296,20]
[426510736,1782496238000,-154.0,0.00032602,30]
[426510747,1782496238000,-389.83938423,0.00033087,2]
[426510751,1782496238000,-1500.0,0.00033483,10]
[426510753,1782496238000,-644.0,0.000336,2]
[426510757,1782496238000,-157.0,0.00033602,30]
[426510750,1782496238000,-535.15129373,0.0003336,2]
[426510756,1782496238000,-154.0,0.00033602,30]
[426510755,1782496238000,-202.0,0.000336,2]
[426510752,1782496238000,-310.0,0.000336,2]
[426510759,1782496238000,-195.09379687,0.00033632,2]
[426510758,1782496238000,-154.0,0.00033602,30]
[426510754,1782496238000,-316.0,0.000336,2]
[426510698,1782496238000,-156.0,0.00030602,30]
[426510749,1782496238000,-619.595,0.00033335,2]
[426510740,1782496238000,-1500.0,0.00032705,2]
[426510732,1782496238000,-183.42,0.00032462,120]
[426510733,1782496238000,-165.0,0.00032602,30]
[426510707,1782496238000,-164.0,0.00030602,30]
[426510712,1782496238000,-46259.0,0.0003104,20]
[426510718,1782496238000,-154.0,0.00031602,30]
[426510711,1782496238000,-1000.0,0.00031,7]
[426510716,1782496238000,-166.0,0.00031598,30]
[426510709,1782496238000,-169.0,0.00030602,30]
[426510717,1782496238000,-156.0,0.00031602,30]
[426510710,1782496238000,-154.0,0.00030602,30]
[426510741,1782496238000,-1500.0,0.00032705,2]
[426510719,1782496238000,-157.0,0.00031602,30]
[426510715,1782496238000,-160.02,0.00031593,120]
[426510713,1782496238000,-1228.54495006,0.00031311,2]
[426510714,1782496238000,-350.0,0.000315,10]
[426510731,1782496238000,-167.48,0.00032373,2]
[426510728,1782496238000,-16775.6749286,0.00032113,2]
[426510721,1782496238000,-154.0,0.00031602,30]
[426510730,1782496238000,-150.53,0.00032354,120]
[426510727,1782496238000,-2164.5624597,0.00032,2]
[426510720,1782496238000,-169.0,0.00031602,30]
[426510729,1782496238000,-188.4297501,0.00032113,2]
[426510726,1782496238000,-46259.0,0.00032,20]
[426510724,1782496238000,-151.0,0.000319,7]
[426510723,1782496238000,-10335.4294,0.000319,2]
[426510725,1782496238000,-151.0,0.000319,7]
[426510722,1782496238000,-280.62,0.00031617,3]
[426510790,1782496239000,-185.25,0.00033906,2]
[426510760,1782496239000,-340.05749686,0.00033632,2]
[426510761,1782496239000,-8525.08249314,0.00033633,10]
[426510776,1782496239000,-151.0,0.00032705,7]
[426510784,1782496239000,-573.74,0.00033906,2]
[426510778,1782496239000,-4608.55207839,0.00033633,10]
[426510782,1782496239000,-535.15129373,0.00033905,2]
[426510786,1782496239000,-151.0,0.00033906,2]
[426510792,1782496239000,-482.5,0.00033906,2]
[426510780,1782496239000,-409.26,0.00033653,3]
[426510794,1782496239000,-573.74,0.00033906,2]
[426510796,1782496239000,-185.24,0.00033906,2]
[426510800,1782496239000,-185.24,0.00033906,2]
[426510798,1782496239000,-573.78,0.00033906,2]
[426510802,1782496239000,-151.0,0.0003391,2]
[426510807,1782496239000,-261.428051,0.0003392,7]
[426510806,1782496239000,-151.0,0.0003392,7]
[426510809,1782496239000,-3720.49673213,0.0003392,20]
[426510804,1782496239000,-151.0,0.0003391,2]
[426510808,1782496239000,-10578.33656708,0.0003392,20]
[426510788,1782496239000,-482.5,0.00033906,2]
[426510810,1782496240000,-1801.62,0.0003392,20]
[426510829,1782496242000,-151.0,0.00032705,7]
[426510828,1782496242000,-151.0,0.00030095,7]
[426510831,1782496242000,-1445.82690282,0.0003392,20]
[426510830,1782496242000,-9464.17164911,0.0003392,20]
[426510832,1782496242000,-357.01369441,0.0003392,20]
[426510833,1782496242000,-3251.61766747,0.0003392,20]
[426510879,1782496243000,-573.69,0.00034728,2]
[426510869,1782496243000,-151.0,0.0003468,7]
[426510871,1782496243000,-151.0,0.0003468,7]
[426510867,1782496243000,-300.0,0.0003468,21]
[426510870,1782496243000,-151.0,0.0003468,7]
[426510878,1782496243000,-482.5,0.00034728,2]
[426510873,1782496243000,-535.15129373,0.00034723,2]
[426510876,1782496243000,-482.55,0.00034728,2]
[426510877,1782496243000,-185.24,0.00034728,2]
[426510872,1782496243000,-150.97,0.000347,30]
[426510874,1782496243000,-644.45,0.00034728,2]
[426510875,1782496243000,-185.24,0.00034728,2]
[426510886,1782496243000,-644.45,0.00034728,2]
[426510884,1782496243000,-285.18,0.00034728,2]
[426510887,1782496243000,-644.45,0.00034732,2]
[426510892,1782496243000,-185.24,0.00034732,2]
[426510889,1782496243000,-151.0,0.00034732,2]
[426510881,1782496243000,-248.67,0.00034728,2]
[426510868,1782496243000,-387.521115,0.0003468,21]
[426510882,1782496243000,-186.31,0.00034728,2]
[426510885,1782496243000,-248.67,0.00034728,2]
[426510891,1782496243000,-644.45,0.00034732,2]
[426510893,1782496243000,-185.28,0.00034732,2]
[426510888,1782496243000,-151.0,0.00034732,2]
[426510883,1782496243000,-248.67,0.00034728,2]
[426510880,1782496243000,-185.24,0.00034728,2]
[426510866,1782496243000,-300.0,0.0003468,21]
[426510854,1782496243000,-154.0,0.00034602,30]
[426510865,1782496243000,-300.0,0.0003468,21]
[426510890,1782496243000,-151.54,0.00034732,2]
[426510834,1782496243000,-151.0,0.00030095,7]
[426510836,1782496243000,-15639.91678698,0.0003392,20]
[426510838,1782496243000,-785.0,0.00034028,2]
[426510840,1782496243000,-785.0,0.00034028,2]
[426510844,1782496243000,-504.0,0.00034203,2]
[426510841,1782496243000,-785.0,0.00034028,2]
[426510843,1782496243000,-535.15129373,0.00034178,2]
[426510842,1782496243000,-350.0,0.00034099,34]
[426510847,1782496243000,-1500.0,0.000344,7]
[426510845,1782496243000,-1228.54495006,0.00034205,2]
[426510846,1782496243000,-1784.89,0.00034247,2]
[426510849,1782496243000,-152.04,0.0003459,30]
[426510857,1782496243000,-2000.0,0.00034679,24]
[426510852,1782496243000,-154.0,0.00034602,30]
[426510850,1782496243000,-170.53,0.00034596,14]
[426510855,1782496243000,-401.01,0.00034672,3]
[426510848,1782496243000,-535.15129373,0.0003445,2]
[426510856,1782496243000,-2000.0,0.00034679,30]
[426510853,1782496243000,-157.0,0.00034602,30]
[426510851,1782496243000,-150.0,0.000346,2]
[426510859,1782496243000,-152.0,0.0003468,7]
[426510858,1782496243000,-313923.96351431,0.0003468,30]
[426510863,1782496243000,-152.0,0.0003468,7]
[426510861,1782496243000,-152.0,0.0003468,7]
[426510864,1782496243000,-240.0,0.0003468,7]
[426510860,1782496243000,-152.0,0.0003468,7]
[426510862,1782496243000,-152.0,0.0003468,7]
[426510895,1782496243000,-185.24,0.00034732,2]
[426510903,1782496243000,-248.7,0.00034732,2]
[426510905,1782496243000,-151.78,0.00034732,2]
[426510937,1782496243000,-644.45,0.00034733,2]
[426510938,1782496243000,-248.67,0.00034733,2]
[426510928,1782496243000,-644.45,0.00034733,2]
[426510930,1782496243000,-151.0,0.00034733,2]
[426510931,1782496243000,-151.0,0.00034733,2]
[426510941,1782496243000,-46259.0,0.0003488,20]
[426510943,1782496243000,-540.93231877,0.000349,120]
[426510942,1782496243000,-172.9155412,0.000349,120]
[426510946,1782496243000,-187.50664117,0.000349,120]
[426510944,1782496243000,-169.87728653,0.000349,120]
[426510947,1782496243000,-1579.65015262,0.000349,120]
[426510952,1782496243000,-1500.0,0.00035,2]
[426510939,1782496243000,-504.0,0.00034783,2]
[426510948,1782496243000,-178.70085077,0.000349,120]
[426510950,1782496243000,-1500.0,0.00035,2]
[426510951,1782496243000,-1500.0,0.00035,2]
[426510954,1782496243000,-1500.0,0.00035,2]
[426510953,1782496243000,-1500.0,0.00035,2]
[426510955,1782496243000,-1500.0,0.00035,2]
[426510960,1782496243000,-1500.0,0.00035,2]
[426510958,1782496243000,-1500.0,0.00035,2]
[426510956,1782496243000,-2494.0,0.00035,30]
[426510961,1782496243000,-25184.10939644,0.00035,2]
[426510957,1782496243000,-1500.0,0.00035,2]
[426510959,1782496243000,-1500.0,0.00035,2]
[426510906,1782496243000,-185.24,0.00034732,2]
[426510949,1782496243000,-535.15129373,0.00034996,2]
[426510922,1782496243000,-644.45,0.00034732,2]
[426510945,1782496243000,-212.73837444,0.000349,120]
[426510923,1782496243000,-151.0,0.00034733,2]
[426510897,1782496243000,-644.45,0.00034732,2]
[426510932,1782496243000,-248.69,0.00034733,2]
[426510896,1782496243000,-482.36,0.00034732,2]
[426510894,1782496243000,-644.45,0.00034732,2]
[426510900,1782496243000,-245.32,0.00034732,2]
[426510902,1782496243000,-482.5,0.00034732,2]
[426510898,1782496243000,-644.45,0.00034732,2]
[426510899,1782496243000,-185.24,0.00034732,2]
[426510901,1782496243000,-185.24,0.00034732,2]
[426510910,1782496243000,-573.74,0.00034732,2]
[426510909,1782496243000,-151.0,0.00034732,2]
[426510907,1782496243000,-573.74,0.00034732,2]
[426510911,1782496243000,-248.67,0.00034732,2]
[426510914,1782496243000,-644.5,0.00034732,2]
[426510904,1782496243000,-151.0,0.00034732,2]
[426510908,1782496243000,-151.0,0.00034732,2]
[426510940,1782496243000,-170.53,0.00034877,14]
[426510936,1782496243000,-248.67,0.00034733,2]
[426510935,1782496243000,-185.25,0.00034733,2]
[426510934,1782496243000,-302.94,0.00034733,2]
[426510916,1782496243000,-185.24,0.00034732,2]
[426510920,1782496243000,-486.31,0.00034732,2]
[426510926,1782496243000,-151.22,0.00034733,2]
[426510913,1782496243000,-185.25,0.00034732,2]
[426510917,1782496243000,-185.24,0.00034732,2]
[426510915,1782496243000,-644.45,0.00034732,2]
[426510912,1782496243000,-185.24,0.00034732,2]
[426510918,1782496243000,-185.24,0.00034732,2]
[426511016,1782496244000,-1134.28,0.00035547,7]
[426511015,1782496244000,-1136.04,0.00035547,7]
[426511004,1782496244000,-170.53,0.00035456,14]
[426511014,1782496244000,-1669.45,0.00035547,7]
[426511002,1782496244000,-151.0,0.00035455,7]
[426510997,1782496244000,-100000.0,0.00035455,90]
[426510998,1782496244000,-151.0,0.00035455,7]
[426510996,1782496244000,-100000.0,0.00035455,60]
[426510999,1782496244000,-151.0,0.00035455,7]
[426511000,1782496244000,-151.0,0.00035455,7]
[426510995,1782496244000,-100000.0,0.00035455,30]
[426511001,1782496244000,-151.0,0.00035455,7]
[426510992,1782496244000,-405.28,0.00035418,30]
[426511003,1782496244000,-151.0,0.00035455,7]
[426511029,1782496244000,-248.67,0.00035555,2]
[426511008,1782496244000,-200.0,0.00035474,10]
[426511005,1782496244000,-405.28,0.00035457,2]
[426511007,1782496244000,-380.1,0.0003546,88]
[426511006,1782496244000,-405.72,0.00035457,2]
[426511009,1782496244000,-405.28,0.00035497,7]
[426511012,1782496244000,-405.72,0.00035536,30]
[426511013,1782496244000,-535.15129373,0.00035541,2]
[426511011,1782496244000,-405.28,0.00035536,30]
[426511017,1782496244000,-185.24,0.00035552,2]
[426511026,1782496244000,-251.37,0.00035555,2]
[426511023,1782496244000,-185.25,0.00035555,2]
[426511025,1782496244000,-644.45,0.00035555,2]
[426510993,1782496244000,-405.72,0.00035418,30]
[426511010,1782496244000,-405.72,0.00035497,7]
[426510994,1782496244000,-20000.0,0.00035455,120]
[426511019,1782496244000,-248.67,0.00035554,2]
[426510989,1782496244000,-1055.23,0.00035369,7]
[426510964,1782496244000,-728.0,0.00035139,120]
[426510965,1782496244000,-447.23197301,0.000352,30]
[426510963,1782496244000,-150.97,0.000351,30]
[426510962,1782496244000,-380.1,0.0003503,62]
[426510966,1782496244000,-707.00323645,0.000352,30]
[426510968,1782496244000,-707.00323643,0.000352,30]
[426510969,1782496244000,-447.231973,0.000352,30]
[426510970,1782496244000,-707.00323643,0.000352,30]
[426510974,1782496244000,-535.15129373,0.00035268,2]
[426510978,1782496244000,-1136.04,0.0003534,30]
[426510972,1782496244000,-2306.88403471,0.000352,30]
[426510976,1782496244000,-405.28,0.0003534,2]
[426510977,1782496244000,-1105.48,0.0003534,30]
[426510991,1782496244000,-405.72,0.00035379,7]
[426510973,1782496244000,-2306.88403471,0.000352,30]
[426510971,1782496244000,-2306.88403473,0.000352,30]
[426510975,1782496244000,-1669.45,0.0003534,30]
[426510980,1782496244000,-405.72,0.0003534,2]
[426510979,1782496244000,-1055.23,0.0003534,30]
[426510990,1782496244000,-405.28,0.00035379,7]
[426510981,1782496244000,-1134.28,0.0003534,30]
[426510985,1782496244000,-164.14757423,0.00035355,2]
[426510986,1782496244000,-271.86055558,0.00035355,2]
[426510988,1782496244000,-1105.48,0.00035369,7]
[426510983,1782496244000,-170.0,0.00035343,7]
[426510987,1782496244000,-504.0,0.00035363,3]
[426510982,1782496244000,-500.0,0.00035343,60]
[426510984,1782496244000,-170.0,0.00035343,7]
[426510967,1782496244000,-447.231973,0.000352,30]
[426511028,1782496244000,-248.67,0.00035555,2]
[426511083,1782496244000,-1530.43628176,0.00035616,7]
[426511027,1782496244000,-644.45,0.00035555,2]
[426511059,1782496244000,-1530.43628176,0.00035616,7]
[426511058,1782496244000,-1530.43628176,0.00035616,7]
[426511062,1782496244000,-1530.43628176,0.00035616,7]
[426511064,1782496244000,-1530.43628176,0.00035616,7]
[426511065,1782496244000,-1530.43628176,0.00035616,7]
[426511061,1782496244000,-1530.43628176,0.00035616,7]
[426511063,1782496244000,-1530.43628176,0.00035616,7]
[426511060,1782496244000,-1530.43628176,0.00035616,7]
[426511077,1782496244000,-1530.43628176,0.00035616,7]
[426511067,1782496244000,-1530.43628176,0.00035616,7]
[426511078,1782496244000,-1530.43628176,0.00035616,7]
[426511066,1782496244000,-1530.43628176,0.00035616,7]
[426511071,1782496244000,-1530.43628176,0.00035616,7]
[426511057,1782496244000,-1530.43628176,0.00035616,7]
[426511068,1782496244000,-1530.43628176,0.00035616,7]
[426511074,1782496244000,-1530.43628176,0.00035616,7]
[426511072,1782496244000,-1530.43628176,0.00035616,7]
[426511073,1782496244000,-1530.43628176,0.00035616,7]
[426511069,1782496244000,-1530.43628176,0.00035616,7]
[426511075,1782496244000,-1530.43628176,0.00035616,7]
[426511076,1782496244000,-1530.43628176,0.00035616,7]
[426511079,1782496244000,-1530.43628176,0.00035616,7]
[426511082,1782496244000,-1530.43628176,0.00035616,7]
[426511081,1782496244000,-1530.43628176,0.00035616,7]
[426511086,1782496244000,-1530.43628176,0.00035616,7]
[426511084,1782496244000,-1530.43628176,0.00035616,7]
[426511080,1782496244000,-1530.43628176,0.00035616,7]
[426511085,1782496244000,-1530.43628176,0.00035616,7]
[426511070,1782496244000,-1530.43628176,0.00035616,7]
[426511051,1782496244000,-1530.43628176,0.00035616,7]
[426511022,1782496244000,-248.67,0.00035555,2]
[426511050,1782496244000,-1530.43628176,0.00035616,7]
[426511056,1782496244000,-1530.43628176,0.00035616,7]
[426511021,1782496244000,-248.7,0.00035555,2]
[426511024,1782496244000,-185.25,0.00035555,2]
[426511020,1782496244000,-248.67,0.00035555,2]
[426511018,1782496244000,-482.5,0.00035552,2]
[426511030,1782496244000,-248.68,0.00035555,2]
[426511042,1782496244000,-1530.43628176,0.00035616,7]
[426511032,1782496244000,-405.28,0.00035575,2]
[426511034,1782496244000,-405.72,0.00035575,2]
[426511033,1782496244000,-1055.23,0.00035575,2]
[426511031,1782496244000,-1105.48,0.00035575,2]
[426511043,1782496244000,-1530.43628176,0.00035616,7]
[426511039,1782496244000,-1530.43628176,0.00035616,7]
[426511037,1782496244000,-405.72,0.00035615,7]
[426511035,1782496244000,-150.97,0.000356,30]
[426511041,1782496244000,-1530.43628176,0.00035616,7]
[426511036,1782496244000,-405.28,0.00035615,7]
[426511045,1782496244000,-1530.43628176,0.00035616,7]
[426511048,1782496244000,-1530.43628176,0.00035616,7]
[426511055,1782496244000,-1530.43628176,0.00035616,7]
[426511052,1782496244000,-1530.43628176,0.00035616,7]
[426511049,1782496244000,-1530.43628176,0.00035616,7]
[426511053,1782496244000,-1530.43628176,0.00035616,7]
[426511054,1782496244000,-1530.43628176,0.00035616,7]
[426511047,1782496244000,-1530.43628176,0.00035616,7]
[426511044,1782496244000,-1530.43628176,0.00035616,7]
[426511038,1782496244000,-470.80054647,0.00035616,60]
[426511040,1782496244000,-1530.43628176,0.00035616,7]
[426511046,1782496244000,-1530.43628176,0.00035616,7]
[426511124,1782496245000,-1541.76790931,0.00035616,7]
[426511127,1782496245000,-1541.76790931,0.00035616,7]
[426511123,1782496245000,-1541.76790931,0.00035616,7]
[426511128,1782496245000,-1541.76790931,0.00035616,7]
[426511122,1782496245000,-1511.77242467,0.00035616,7]
[426511120,1782496245000,-1511.77242467,0.00035616,7]
[426511125,1782496245000,-1541.76790931,0.00035616,7]
[426511119,1782496245000,-1511.77242467,0.00035616,7]
[426511130,1782496245000,-167.42666285,0.00035616,2]
[426511121,1782496245000,-1511.77242467,0.00035616,7]
[426511126,1782496245000,-1541.76790931,0.00035616,7]
[426511129,1782496245000,-1541.76790931,0.00035616,7]
[426511131,1782496245000,-151.0,0.00035616,30]
[426511144,1782496245000,-405.28,0.00035772,30]
[426511136,1782496245000,-405.72,0.00035654,30]
[426511133,1782496245000,-152.809282,0.00035616,30]
[426511137,1782496245000,-387.49,0.0003569,3]
[426511134,1782496245000,-1228.54495006,0.00035653,2]
[426511138,1782496245000,-405.28,0.00035693,2]
[426511132,1782496245000,-151.0,0.00035616,30]
[426511142,1782496245000,-1669.45,0.00035754,2]
[426511139,1782496245000,-405.72,0.00035693,2]
[426511140,1782496245000,-405.28,0.00035733,7]
[426511143,1782496245000,-1136.04,0.00035754,2]
[426511141,1782496245000,-405.72,0.00035733,7]
[426511145,1782496245000,-405.72,0.00035772,30]
[426511118,1782496245000,-1511.77242467,0.00035616,7]
[426511135,1782496245000,-405.28,0.00035654,30]
[426511115,1782496245000,-1511.77242467,0.00035616,7]
[426511100,1782496245000,-1511.77242467,0.00035616,7]
[426511109,1782496245000,-1511.77242467,0.00035616,7]
[426511146,1782496245000,-1105.48,0.00035781,30]
[426511090,1782496245000,-1511.77242467,0.00035616,7]
[426511087,1782496245000,-1530.43628176,0.00035616,7]
[426511091,1782496245000,-1511.77242467,0.00035616,7]
[426511088,1782496245000,-1511.77242467,0.00035616,7]
[426511089,1782496245000,-1511.77242467,0.00035616,7]
[426511092,1782496245000,-1511.77242467,0.00035616,7]
[426511094,1782496245000,-1511.77242467,0.00035616,7]
[426511093,1782496245000,-1511.77242467,0.00035616,7]
[426511102,1782496245000,-1511.77242467,0.00035616,7]
[426511103,1782496245000,-1511.77242467,0.00035616,7]
[426511096,1782496245000,-1511.77242467,0.00035616,7]
[426511095,1782496245000,-1511.77242467,0.00035616,7]
[426511110,1782496245000,-1511.77242467,0.00035616,7]
[426511097,1782496245000,-1511.77242467,0.00035616,7]
[426511098,1782496245000,-1511.77242467,0.00035616,7]
[426511099,1782496245000,-1511.77242467,0.00035616,7]
[426511101,1782496245000,-1511.77242467,0.00035616,7]
[426511105,1782496245000,-1511.77242467,0.00035616,7]
[426511111,1782496245000,-1511.77242467,0.00035616,7]
[426511107,1782496245000,-1511.77242467,0.00035616,7]
[426511108,1782496245000,-1511.77242467,0.00035616,7]
[426511106,1782496245000,-1511.77242467,0.00035616,7]
[426511116,1782496245000,-1511.77242467,0.00035616,7]
[426511114,1782496245000,-1511.77242467,0.00035616,7]
[426511113,1782496245000,-1511.77242467,0.00035616,7]
[426511117,1782496245000,-1511.77242467,0.00035616,7]
[426511112,1782496245000,-1511.77242467,0.00035616,7]
[426511104,1782496245000,-1511.77242467,0.00035616,7]
[426511147,1782496245000,-1055.23,0.00035781,30]
[426511166,1782496245000,-405.28,0.00035969,7]
[426511148,1782496245000,-405.28,0.00035811,2]
[426511187,1782496245000,-2088.828882,0.00036203,8]
[426511179,1782496245000,-405.3,0.00036087,7]
[426511185,1782496245000,-2088.828882,0.00036203,8]
[426511180,1782496245000,-405.89,0.00036087,7]
[426511186,1782496245000,-2088.828882,0.00036203,8]
[426511184,1782496245000,-2088.828882,0.00036203,8]
[426511189,1782496245000,-2088.828882,0.00036203,8]
[426511191,1782496245000,-2088.828882,0.00036203,8]
[426511193,1782496245000,-271.86055556,0.00036229,2]
[426511149,1782496245000,-405.72,0.00035811,2]
[426511198,1782496245000,-728.0,0.0003629,120]
[426511207,1782496245000,-150.0,0.00036459,2]
[426511209,1782496245000,-1669.45,0.00036582,30]
[426511183,1782496245000,-2088.8288821,0.00036203,8]
[426511206,1782496245000,-512.15,0.00036454,120]
[426511208,1782496245000,-504.0,0.00036522,4]
[426511199,1782496245000,-453.39,0.00036309,120]
[426511201,1782496245000,-535.15129373,0.00036359,2]
[426511205,1782496245000,-2088.828882,0.000364,8]
[426511200,1782496245000,-380.1,0.0003634,116]
[426511204,1782496245000,-150.97,0.000364,30]
[426511202,1782496245000,-151.22,0.00036375,2]
[426511203,1782496245000,-1669.45,0.00036375,2]
[426511210,1782496245000,-535.15129373,0.00036631,2]
[426511213,1782496245000,-171.0,0.00036757,7]
[426511211,1782496245000,-378.04,0.00036708,3]
[426511212,1782496245000,-2110.0,0.0003674,2]
[426511214,1782496245000,-170.0,0.00036757,7]
[426511197,1782496245000,-323.26723756,0.0003626,120]
[426511182,1782496245000,-1136.04,0.00036168,7]
[426511196,1782496245000,-416.98691536,0.0003626,120]
[426511178,1782496245000,-535.15129373,0.00036086,2]
[426511151,1782496245000,-728.0,0.00035827,120]
[426511152,1782496245000,-405.28,0.00035851,7]
[426511181,1782496245000,-1669.45,0.00036168,7]
[426511153,1782496245000,-405.72,0.00035851,7]
[426511156,1782496245000,-540.93231877,0.000359,120]
[426511160,1782496245000,-380.1,0.000359,106]
[426511155,1782496245000,-405.72,0.0003589,30]
[426511159,1782496245000,-178.70085077,0.000359,120]
[426511154,1782496245000,-405.28,0.0003589,30]
[426511157,1782496245000,-212.73837444,0.000359,120]
[426511158,1782496245000,-1579.65015262,0.000359,120]
[426511161,1782496245000,-405.28,0.00035929,2]
[426511163,1782496245000,-504.0,0.00035942,4]
[426511164,1782496245000,-1669.45,0.00035961,30]
[426511150,1782496245000,-535.15129373,0.00035813,2]
[426511165,1782496245000,-1136.04,0.00035961,30]
[426511162,1782496245000,-405.72,0.00035929,2]